Cogmind - Beta 16.1 @@@ ROGUE MODE // 2026.03.03 @ 17:58:13 Player: gamerman Result: Destroyed by G-34 Mercenary with Small Laser Performance ------------- Evolutions (0) 0 Regions Visited (2) 400 Robots Destroyed (15) 75 Value Destroyed (305) 305 Prototype IDs (0) 0 Alien Tech Used (0) 0 Bonus (0) 0 TOTAL SCORE: 780 Bonus ------- None Cogmind --------- Core Integrity 0/250 Matter 280/300 Energy 100/100 System Corruption 0% Temperature Cool (10) Movement Treading (320) Ox2 Location -10/Mines Parts ------- > --- POWER (1) -------- (None) > --- PROPULSION (2) --- Light Treads Light Treads > --- UTILITY (2) ------ Huge Storage Unit Power Shielding > --- WEAPON (2) ------- Light Assault Rifle > --- INVENTORY (25) --- Ion Engine Light Ion Engine Light Ion Engine Flight Unit Flight Unit Flight Unit Flight Unit Improved Heat Sink Improved Heat Sink Small Storage Unit Utility Shielding Light Armor Plating Peak State ------------ > --- POWER ------------ Ion Engine > --- PROPULSION ------- Wheel Compact Wheel > --- UTILITY ---------- Huge Storage Unit Power Shielding > --- WEAPON ----------- Medium Laser Light Assault Rifle > --- INVENTORY -------- Light Ion Engine Light Ion Engine Light Treads Light Treads Flight Unit Flight Unit Flight Unit Small Storage Unit Utility Shielding Light Armor Plating [Rating: 8] Favorites ----------- Power Ion Engine Engine Ion Engine Propulsion Wheel Treads Light Treads Leg Aluminum Leg Wheel Wheel Utility Huge Storage Unit Storage Huge Storage Unit Protection Power Shielding Weapon EM Pulse Gun Energy Gun EM Pulse Gun Ballistic Gun Light Assault Rifle Build | -11 -10 -10 ------- Run | Yrd Mat Min Slots Evolved . | . . . Power . | . . . Propulsion . | . . . Utility . | . . . Weapon . | . . . Parts Attached 15 | 7 5 3 Power 1 | 1 . . Engine 1 | 1 . . Core . | . . . Reactor . | . . . Propulsion 5 | 2 2 1 Treads 2 | 2 . . Leg 1 | . . 1 Wheel 2 | . 2 . Hover . | . . . Flight . | . . . Utility 4 | 1 3 . Device . | . . . Storage 2 | 1 1 . Processor . | . . . Hackware . | . . . Protection 2 | . 2 . Artifact . | . . . Weapon 5 | 3 . 2 Energy Gun 3 | 3 . . Energy Cannon . | . . . Ballistic Gun 2 | . . 2 Ballistic Cannon . | . . . Launcher . | . . . Special Weapon . | . . . Impact Weapon . | . . . Slashing Weapon . | . . . Piercing Weapon . | . . . Special Melee Weapon . | . . . Unidentified Prototypes . | . . . Parts Lost 7 | . . 7 Power 1 | . . 1 Propulsion 2 | . . 2 Utility . | . . . Weapon 4 | . . 4 Highest Loss Streak 3 | . . 3 To Critical Strikes . | . . . Average Backups 9 | 2 5 12 Power 1 | . 1 2 Propulsion 3 | . 2 5 Utility 2 | . 1 4 Weapon . | . 1 . Tool/Special . | . . . Unused Backups 11 | . . 11 Power 3 | . . 3 Propulsion 4 | . . 4 Utility 4 | . . 4 Weapon . | . . . Tool/Special . | . . . Average Slot Usage (%) 95 | . 97 95 Engine 13 | . 14 13 Treads 4 | . 10 1 Leg 6 | . . 10 Wheel 15 | . 16 15 Storage 14 | . 14 14 Protection 13 | . 13 14 Energy Gun 18 | . 27 13 Ballistic Gun 7 | . . 12 Peak Build Rating 8 | 6 7 8 Average Rating 7 | 5 6 7 On Entrance 4 | . 6 7 Avg Prop Armor Cover (%) 10 | . . 10 Naked Turns . | . . . Heaviest Build 90 | 14 90 89 Greatest Support 40 | 40 40 40 Greatest Overweight (x) 29 | . 8 29 Average Overweight (x) 4 | . 2 6 Largest Inventory Capacity 25 | 8 25 25 Average Capacity 21 | 7 19 25 Most Carried 14 | 4 7 14 Average Carried 9 | 2 5 12 Final Capacity 25 | 8 25 25 Final Carried 12 | 4 7 12 Class Distribution -------------------- 100% | Mutant Dominant Class ---------------- Mutant | -10/Materials Mutant | -10/Mines Resources | -11 -10 -10 ----------- Run | Yrd Mat Min Matter Collected 433 | 189 121 123 Remotely . | . . . Salvage Created 444 | . 110 334 Parts 30 | . 4 26 Haulers Intercepted . | . . . Recyclers Shooed 1 | . . 1 Parts Field Recycled . | . . . Retrieved Matter . | . . . Parts Self-Destructed . | . . . Prevented . | . . . Parts Restored . | . . . Kills | -11 -10 -10 ------- Run | Yrd Mat Min Combat Hostiles Destroyed 14 | . 2 12 Guns 13 | . 1 12 Classes Destroyed 3 | . 1 2 Recycler 1 | . . 1 Swarmer 9 | . . 9 Grunt 5 | . 2 3 Best Kill Streak 3 | . 2 3 Combat Bots Only 3 | . 2 3 Max Kills in Single Turn 2 | . 1 2 Gunslinging 1 | . . 1 Exploded . | . . . Melee . | . . . Uniques/NPCs Destroyed . | . . . Combat | -11 -10 -10 -------- Run | Yrd Mat Min Hostile Shots Fired 116 | . 11 105 Missed 30 | . 6 24 Hits 86 | . 5 81 Projectile 86 | . 5 81 Critical Strikes 1 | . . 1 Damage Taken 913 | . 66 847 Core 250 | . . 250 Absorbed by Shields . | . . . Redirected to Shielding 22 | . . 22 Core Remaining (%) 100 | 100 . . Volleys Fired 45 | . 7 38 Largest 2 | . 2 2 Hottest 80 | . 80 80 Shots Fired 76 | . 14 62 Gun 76 | . 14 62 Cannon . | . . . Launcher . | . . . Special . | . . . Kinetic 24 | . . 24 Thermal 20 | . . 20 Explosive . | . . . Electromagnetic 32 | . 14 18 Robot Hit Streak 8 | . 4 8 Robot Miss Streak 3 | . 2 3 Penetration Max . | . . . Secondary Targets 4 | . 1 3 Max Gunslinging Chain 1 | . 1 1 Shots Hit Robots 43 | . 10 33 Core Hits 24 | . 4 20 Critical Kills . | . . . Critical Parts Destroyed . | . . . Critical Strikes . | . . . Melee Attacks . | . . . Impact . | . . . Slashing . | . . . Piercing . | . . . Sneak Attacks . | . . . Combat Hostiles . | . . . Follow-up Attacks . | . . . Damage Inflicted 496 | . 140 356 Guns 496 | . 140 356 Cannons . | . . . Explosions . | . . . Melee . | . . . Ramming . | . . . Kinetic 112 | . . 112 Thermal 139 | . . 139 Explosive . | . . . Electromagnetic 245 | . 140 105 Impact . | . . . Slashing . | . . . Piercing . | . . . Highest Corruption . | . . . Average Corruption . | . . . Corruption Purged . | . . . Corruption Blocked . | . . . Overload Shots . | . . . Overflow Damage . | . . . Projectiles . | . . . Explosions . | . . . Melee . | . . . Knockbacks . | . . . Impact . | . . . Kinetic . | . . . Secondary . | . . . Self-Inflicted Damage . | . . . Shots . | . . . Rammed . | . . . Targets Rammed . | . . . Kicked . | . . . Crushed . | . . . Highest Temperature 165 | . 165 136 Average Temperature 57 | . 87 48 Received Heat Transfer 339 | . 39 300 Siege Activations . | . . . Martial Activations . | . . . Shielding Activations . | . . . Robots Disrupted . | . . . Combat Hostiles . | . . . Robots Corrupted 1 | . 1 . Combat Hostiles 1 | . 1 . Parts Fried 1 | . 1 . Impact Corruptions . | . . . Robots Melted . | . . . Combat Hostiles . | . . . Parts Melted . | . . . Heat Transferred 407 | . . 407 Parts Sabotaged . | . . . Parts Stolen . | . . . Parts Stripped . | . . . Power Chain Reactions . | . . . Alert | -11 -10 -10 ------- Run | Yrd Mat Min Maximum Alert Level . | . . . Low Security (%) 100 | 100 100 100 Level 1 . | . . . Level 2 . | . . . Level 3 . | . . . Level 4 . | . . . Level 5 . | . . . High Security . | . . . Max Security . | . . . Peak Influence 108 | . 40 108 Initial . | . . . Average 21 | . 6 34 Influence Increases 393 | . 68 325 Destroy 0b10 Robot/C 280 | . 40 240 Destroy 0b10 Robot/NC 5 | . . 5 Destroy Leader 60 | . 10 50 Successful Hack 18 | . 18 . Lose Combat Pursuer 30 | . . 30 Influence Decreases 347 | . 68 279 Time Decay 277 | . 68 209 Lost Part 70 | . . 70 Squads Dispatched . | . . . Investigation . | . . . Extermination . | . . . Reinforcement . | . . . Assault . | . . . Garrison . | . . . Intercept . | . . . Searches Triggered . | . . . Construction Impeded . | . . . Haulers Reinforced . | . . . Active Scanning Responses . | . . . Cargo Convoy Interrupts . | . . . Stealth | -11 -10 -10 --------- Run | Yrd Mat Min Distress Signals . | . . . Communications Jammed . | . . . Distress Signals . | . . . Times Spotted 20 | . 4 16 Peak Tracking Total 3 | . 2 3 Tactical Retreats 2 | . . 2 Traps | -11 -10 -10 ------- Run | Yrd Mat Min Traps Triggered 3 | . 3 . Indirectly . | . . . Trap Hack Attempts . | . . . Triggered . | . . . Disarmed . | . . . Reprogrammed . | . . . Reused . | . . . Traps Extracted . | . . . Installed . | . . . Triggered . | . . . Machines | -11 -10 -10 ---------- Run | Yrd Mat Min Machines Disabled . | . . . Max in Single Turn . | . . . Machines Repaired . | . . . Machines Dismantled . | . . . Machines Sabotaged . | . . . Overloaded Fab Kills . | . . . Hacking | -11 -10 -10 --------- Run | Yrd Mat Min Machines Accessed 4 | . 4 . Terminals 3 | . 3 . Fabricators . | . . . Repair Stations . | . . . Recycling Units 1 | . 1 . Scanalyzers . | . . . Garrison Access . | . . . Total Hacks 10 | . 10 . Successful 7 | . 7 . Failed 3 | . 3 . Catastrophic 1 | . 1 . Database Lockouts . | . . . Manual 10 | . 10 . Terminals 6 | . 6 . Fabricators . | . . . Repair Stations . | . . . Recycling Units 4 | . 4 . Scanalyzers . | . . . Garrison Access . | . . . Terminal Hacks 1 | . 1 . Unreport Threat 1 | . 1 . Fabricator Hacks . | . . . Repair Station Hacks . | . . . Recycling Unit Hacks . | . . . Scanalyzer . | . . . Garrison Access Hacks . | . . . Unauthorized Hacks 3 | . 3 . Terminals 3 | . 3 . Botnet 3 | . 3 . Fabricators . | . . . Repair Stations . | . . . Recycling Units . | . . . Scanalyzers . | . . . Garrison Access . | . . . Data Cores Recovered . | . . . Used . | . . . Hacking Detections 2 | . 2 . Full Trace Events . | . . . Feedback Events . | . . . Feedback Blocked . | . . . Robot Schematics Acquired . | . . . Robots Built . | . . . Authchips . | . . . Time . | . . . Total Robot Build Rating . | . . . Part Schematics Acquired . | . . . Parts Built . | . . . Authchips . | . . . Time . | . . . Total Part Build Rating . | . . . Part Studies Acquired . | . . . Parts Repaired . | . . . Time . | . . . Parts Recycled . | . . . Recycled Matter . | . . . Retrieved Matter . | . . . Retrieved Components . | . . . Parts Scanalyzed . | . . . Part Schematics Acquired . | . . . Parts Damaged . | . . . Bothacking | -11 -10 -10 ------------ Run | Yrd Mat Min Used RIF Installer . | . . . Robots Hacked . | . . . Non-combat . | . . . Combat . | . . . Robot Hacks Applied . | . . . Relay Couplers Released . | . . . Fabnet Peak Effective % . | . . . Robots Rewired . | . . . Allies Hacked . | . . . Hacks Repelled . | . . . Allies | -11 -10 -10 -------- Run | Yrd Mat Min Total Allies . | . . . Largest Group . | . . . Highest-Rated Group . | . . . Highest-Rated Ally . | . . . Total Orders . | . . . Ally Attacks . | . . . Total Damage . | . . . Kills . | . . . Allies Corrupted . | . . . Allies Melted . | . . . Intel | -11 -10 -10 ------- Run | Yrd Mat Min Active Infowar (turns) . | . . . Robot Analysis Total . | . . . Derelict Logs Recovered 1 | . . 1 Drone Launches . | . . . Drone Recoveries . | . . . Exploration | -11 -10 -10 ------------- Run | Yrd Mat Min Turns Passed 1235 | 111 417 707 Spaces Moved 610 | 63 264 283 Core 5 | 2 . 3 Treads 144 | 61 77 6 Legs . | . . . Wheels 461 | . 187 274 Hover . | . . . Flight . | . . . Fastest Speed 50 | 50 135 135 Average Speed 171 | 156 143 200 Slowest Speed 1500 | 160 200 1500 Overloaded Moves . | . . . Propulsion Burnouts . | . . . Robots Hopped . | . . . Potential Cave-ins . | . . . Cave-ins Triggered . | . . . Exploration Rate (%) 31 | 4 36 54 Regions Visited 2 Branch Regions 1 Pre-discovered Areas . | . . . Known Exits Taken . | . . . Unknown Exits Taken 2 | 1 1 . Scrap Searched 1 | . . 1 Spaces Dug . | . . . Terrain Destroyed . | . . . Melee . | . . . Projectile . | . . . AOE . | . . . Terrain Rammed . | . . . Walls Destroyed . | . . . Machines Disabled . | . . . Actions | -11 -10 -10 --------- Run | Yrd Mat Min Total 724 | 73 284 367 Wait 28 | . . 28 Move 608 | 62 263 283 Hop . | . . . Pick Up 15 | 3 2 10 Fast Attach 17 | 7 8 2 Attach 4 | . . 4 Detach 1 | 1 . . Swap 3 | . 3 . Drop 3 | . 1 2 Fire 45 | . 7 38 Melee . | . . . Ram . | . . . Kick . | . . . Crush . | . . . Escape Stasis . | . . . Rewire . | . . . Trap . | . . . Miscellaneous . | . . . Route ------- -11/Scrapyard -10/Materials -10/Mines History --------- Turn | Location | Event 24 | -11/Scrapyard | Discovered new exit (range 16) 112 | -11/Scrapyard | Entered Materials 302 | -10/Materials | Build established: Mutant 443 | -10/Materials | Discovered new exit (range 13) 529 | -10/Materials | Entered Mines 920 | -10/Mines | Found a hidden stash of uninstalled traps 1149 | -10/Mines | Core integrity fell below 50% 1217 | -10/Mines | Core integrity fell below 20% 1236 | -10/Mines | Destroyed by G-34 Mercenary with Small Laser Last Messages --------------- 01005_ Found Terrain Scanner. 01005_ Found 46 Matter. 01008_ Acquired 1 matter. 01037_ R-06 Scavenger destroyed. 01037_ Switching to secondary target: G-47 Trooper. 01048_ G-47 Trooper destroyed. 01054_ Acquired 6 matter. 01058_ Acquired Imp. Heat Sink. 01149_ Wheel destroyed. 01151_ S-10 Pest destroyed. 01178_ Acquired 4 matter. 01189_ Ion Engine destroyed. 01191_ Med. Laser destroyed. 01206_ Lgt. Assault Rifle destroyed. 01207_ Dropped Aluminum Leg. 01207_ Critical hit (Burn: +37). 01222_ Acquired Lgt. Assault Rifle. 01223_ Acquired 14 matter. 01230_ K-01 Serf collects debris. Map ----- +----------------------------------------------------+ | | | | | | | | | | | | | | | | | | | | | | | | | ?????????????????????????????????????????????????? | | ?????????????????????????????????????????????????? | | ?????????????????????????????????????????????????? | | ?????????????????????????????????????????????????? | | ?????????????????????????????????????????????????? | | ?????????????????????????????????????????????????? | | ???????????????????????????????###???????????????? | | ??????????????????????????????# ##??????????????? | | ?????????????????????????????# ## ??????????? | | ???????????????????????????## ????????????? | | ???????????????????????????# """ ???????????? | | ????????????????????????#### """ #???????????? | | ????????????????????????# """ #????????????? | | ????????????????????????#@ g ##????????????? | | ??????????????????##????# ##### ###?????????????? | | ????????????????## ##??# #???? #???????????????? | | ???????????????? ???# #????? #???????????????? | | ???????????????? ???# #?????? ?#?????????????? | | ???????????????? ????# #?????? #?????????????? | | ????????????????# ?????#g#???? #?????????????? | | ????????????????# #?????#%### #??????????????? | | ????????????##### #######* """ #??????????????? | | ????????????# =% """ #?????#???????? | | ????????????# ### k """ ?????? ???????? | | ???????###### #?####### ????? ???????? | | ???????# #???????# #### ??? ???????? | | ???????#%######???????## #????? ?? ???????? | | ??????## #######???????## #???? ????# #??????? | | ??????#!= #????????## #### ????# #??????? | | ??????#[""" #?????????# ?????# #??????? | | ??????#%""" #??????????# # ??????# #??????? | | ??????#!""" #???????????#### ##?????# #??????? | | ??????#*= #??????????????# #??????# #??????? | | ??????# """ #?????????????## ##?##### ####???? | | ??????# """ #????????????## ### #???? | | ??????# """ #???????????## #???? | | ??????# #???????????# ### #### | | ??????# #??????????## #?# | +----------------------------------------------------+ Best States ------------- Heat Dissipation 25 Energy Generation 10 Energy Capacity 250 Matter Stores 300 Matter Capacity 300 Sight Range 16 Terrain Scan Density 10 Power Shielding 33 Utility Shielding 33 Evasion (%) 40 Recoil Reduction 2 Item Schematics ----------------- None Robot Schematics ------------------ None Fabricated ------------ Nothing Repaired ---------- Nothing Studied --------- None Alien Tech Used ----------------- None Achievements -------------- None Challenges ------------ None Game ------ Seed CentriumShiftCanceller Manual? 0 Play Time 00:08:55 Cumulative 29.7 hours Start 2026.03.03 @ 17:48:58 End 2026.03.03 @ 17:58:13 Sessions 1 Manual Loads 0 Difficulty Rogue Special Mode None Game No. 35 Rogue 35 Adventurer 0 Explorer 0 Win Type - Total 1 Types 1/0/0/0/0/0/0/0/0/0 Lore% 31 Gallery% 28 Achievement% 23 Wizard Run 0 Options --------- Layout 1 ASCII 0 Keyboard 0 Movement Vi Keybinds 0 Fullscreen 1 Font 24/Smallcaps Map View 50x35 Zoom Use 0% Tactical HUD 1 Map Filters NONE Filters NONE Steam 1 RUN: ce791429-c82a-439d-9cc2-24953bf57c31